bitfinex/quotes_BTCUSD_20240908
["timestamp","ask_amount","ask_price","bid_price","bid_amount"]
[1725802710156,2.70467508,54380.0,54379.0,0.01563]
[1725802710851,3.10245708,54380.0,54379.0,0.00863]
[1725802711075,3.10245708,54380.0,54358.0,0.00163]
[1725802711076,1.340577,54374.0,54359.0,0.55430836]
[1725802711312,2.61317952,54374.0,54359.0,0.55430836]
[1725802711535,3.12586208,54374.0,54359.0,0.55430836]
[1725802711778,3.65132917,54374.0,54359.0,0.55430836]
[1725802713170,3.12586208,54374.0,54359.0,0.55430836]
[1725802713409,3.13486208,54374.0,54373.0,0.00263]
[1725802713651,3.16271471,54374.0,54373.0,0.00263]
[1725802713942,3.15371471,54374.0,54373.0,0.00163]
[1725802714159,3.16671471,54374.0,54373.0,0.00263]
[1725802714613,3.16570017,54374.0,54373.0,0.00263]
[1725802715477,3.17970017,54374.0,54373.0,0.00363]
[1725802715910,3.16570017,54374.0,54373.0,0.00263]
[1725802716130,3.35163008,54374.0,54373.0,0.00263]
[1725802716355,3.36563008,54374.0,54373.0,0.00363]
[1725802716617,3.39294646,54374.0,54373.0,0.00363]
[1725802717308,2.59141148,54374.0,54373.0,0.00363]
[1725802717537,2.54821148,54374.0,54373.0,0.00363]
[1725802717772,2.52200159,54374.0,54373.0,0.00363]
[1725802718223,2.51200159,54374.0,54373.0,0.00363]
[1725802718446,2.68717413,54374.0,54373.0,0.00363]
[1725802718669,2.49241158,54374.0,54373.0,0.00363]
[1725802718886,2.843373,54374.0,54373.0,0.00363]
[1725802719128,2.67820046,54374.0,54373.0,0.00363]
[1725802719344,2.67795758,54374.0,54373.0,0.00363]
[1725802719559,2.46354857,54374.0,54373.0,0.00363]
[1725802720648,2.45354857,54374.0,54373.0,0.00363]
[1725802720815,2.48238421,54374.0,54373.0,0.00363]
[1725802721050,2.48238421,54374.0,54369.0,0.0777]
[1725802721051,1.287471,54370.0,54369.0,0.0777]
[1725802721273,1.6813735,54370.0,54369.0,0.0777]
[1725802721662,0.91976,54362.0,54361.0,0.0639]
[1725802721889,1.07479733,54362.0,54361.0,0.0639]
[1725802722106,1.01976,54362.0,54361.0,0.0639]
[1725802722324,1.387664,54362.0,54361.0,0.1416]
[1725802722560,0.91981,54359.0,54357.0,0.07933]
[1725802722787,1.67919238,54359.0,54357.0,0.00163]
[1725802723044,1.387734,54359.0,54357.0,0.00163]
[1725802724145,1.47025054,54359.0,54357.0,0.00163]
[1725802724825,1.47025054,54359.0,54358.0,0.00463]
[1725802725038,1.53694788,54359.0,54358.0,0.00463]
[1725802725244,1.45443134,54359.0,54358.0,0.00663]
[1725802725961,1.387734,54359.0,54358.0,0.00363]
[1725802726181,1.46933398,54359.0,54358.0,0.00163]
[1725802727068,1.47433398,54359.0,54358.0,0.00163]
[1725802727725,1.47833398,54359.0,54358.0,0.00163]
[1725802727946,1.41934345,54359.0,54358.0,0.14323]
[1725802728178,1.42134345,54359.0,54358.0,0.14323]
[1725802728824,1.41634345,54359.0,54358.0,0.14323]
[1725802729036,1.41434345,54359.0,54358.0,0.14323]
[1725802729311,1.41634345,54359.0,54358.0,0.14323]
[1725802729547,0.002,54359.0,54358.0,1.063057]
[1725802729768,0.183917,54373.0,54359.0,0.1416]
[1725802730011,0.367829,54373.0,54369.0,0.0777]
[1725802730232,0.183923,54371.0,54369.0,0.0777]
[1725802730453,0.183922,54371.0,54369.0,0.0777]
[1725802730725,0.183915,54373.0,54369.0,0.0777]
[1725802730944,0.02752002,54375.0,54373.0,0.0793]
[1725802731169,0.23887627,54377.0,54374.0,0.24554617]
[1725802731393,0.23887627,54377.0,54375.0,0.0793]
[1725802731879,0.183904,54376.0,54375.0,0.0793]
[1725802732544,0.283904,54376.0,54375.0,0.0793]
[1725802732759,0.283904,54376.0,54375.0,0.0833]
[1725802733847,0.283904,54376.0,54375.0,0.0843]
[1725802734275,0.283904,54376.0,54375.0,0.0853]
[1725802734699,0.283904,54376.0,54375.0,0.0903]
[1725802736006,0.284719,54376.0,54375.0,0.0903]
[1725802736215,0.31354913,54376.0,54375.0,0.0903]
[1725802739798,0.77700723,54376.0,54375.0,0.0903]
[1725802740005,0.3685234,54376.0,54375.0,0.0903]
[1725802740216,0.7363324,54376.0,54375.0,0.0903]
[1725802740869,0.68135813,54376.0,54375.0,0.0853]
[1725802741094,0.73634114,54376.0,54375.0,0.0793]
[1725802741302,0.73734114,54376.0,54375.0,0.0853]
[1725802741543,0.68335813,54376.0,54375.0,0.0923]
[1725802741771,0.81599206,54376.0,54375.0,0.0923]
[1725802742698,0.68335813,54376.0,54375.0,0.0923]
[1725802742924,0.73834114,54376.0,54375.0,0.0923]
[1725802746941,0.70951101,54376.0,54375.0,0.0923]
[1725802747176,0.70951101,54376.0,54375.0,0.013]
[1725802747177,1.390146,54376.0,54375.0,0.013]
[1725802747393,2.06364012,54376.0,54375.0,0.013]
[1725802747873,2.24862319,54376.0,54375.0,0.013]
[1725802749461,2.27006748,54376.0,54375.0,0.013]
[1725802749710,1.655199,54374.0,54373.0,0.00163]
[1725802749926,2.12427746,54374.0,54373.0,0.00163]
[1725802750151,2.40926053,54374.0,54373.0,0.00163]
[1725802750610,2.41926053,54374.0,54373.0,0.00163]
[1725802750887,3.09062542,54374.0,54373.0,0.00163]
[1725802751124,3.09262542,54374.0,54373.0,0.01863]
[1725802751378,3.09162542,54374.0,54373.0,0.00963]
[1725802751850,3.2771931,54374.0,54373.0,0.00963]
[1725802752294,3.09962542,54374.0,54373.0,0.00263]
[1725802753905,3.11362542,54374.0,54373.0,0.00263]
[1725802754117,3.10462542,54374.0,54373.0,0.00163]
[1725802754551,3.08909234,54374.0,54373.0,0.00163]
[1725802755200,3.10309234,54374.0,54373.0,0.00163]
[1725802755420,3.08909234,54374.0,54373.0,0.00163]
[1725802755912,3.10309234,54374.0,54373.0,0.00163]
[1725802756589,3.10509234,54374.0,54373.0,0.00163]
[1725802759571,1.287709,54360.0,54359.0,0.0793]
[1725802759797,1.67856418,54360.0,54359.0,0.0793]
[1725802760255,1.84513405,54360.0,54359.0,0.1429]
[1725802761156,1.84613405,54360.0,54359.0,0.1429]
[1725802761644,1.84613405,54360.0,54359.0,0.14453]
[1725802761865,1.84913405,54360.0,54359.0,0.14453]
[1725802762184,1.23659102,54360.0,54359.0,0.14453]
[1725802762815,1.42054902,54360.0,54359.0,0.14453]
[1725802764599,1.50317665,54360.0,54359.0,0.14453]
[1725802765027,1.67828261,54360.0,54359.0,0.14453]
[1725802765906,1.50317665,54360.0,54359.0,0.14453]
[1725802766773,1.53031386,54360.0,54359.0,0.14453]
[1725802766993,1.50147384,54360.0,54359.0,0.14453]
[1725802768335,1.13355684,54360.0,54359.0,0.14453]
[1725802768555,1.05092921,54360.0,54359.0,0.14453]
[1725802769269,0.31509521,54360.0,54359.0,0.14453]
[1725802769460,0.31109521,54360.0,54359.0,0.14453]
[1725802769711,0.31509521,54360.0,54359.0,0.14453]
[1725802770169,0.37016763,54360.0,54359.0,0.14453]
[1725802770415,0.31509521,54360.0,54359.0,0.14453]
[1725802771082,0.31109521,54360.0,54359.0,0.14453]
[1725802771298,0.80337828,54360.0,54359.0,0.14453]
[1725802771509,0.43546128,54360.0,54359.0,0.14553]
[1725802771976,1.13053784,54360.0,54359.0,0.14553]
[1725802772195,1.47887416,54360.0,54359.0,0.14453]
[1725802772420,1.47787416,54360.0,54359.0,0.14853]
[1725802772884,1.47887416,54360.0,54359.0,0.14853]
[1725802773117,1.47887416,54360.0,54359.0,0.14453]
[1725802773337,1.84679116,54360.0,54359.0,0.14453]
[1725802773549,1.89212332,54360.0,54359.0,0.14453]
[1725802773772,1.92096268,54360.0,54359.0,0.14453]
[1725802774216,1.91996268,54360.0,54359.0,0.14453]
[1725802775115,1.92496268,54360.0,54359.0,0.14453]
[1725802775329,1.91996268,54360.0,54359.0,0.14453]
[1725802775785,1.92396268,54360.0,54359.0,0.14453]
[1725802776027,1.91996268,54360.0,54359.0,0.14453]
[1725802776232,1.92396268,54360.0,54359.0,0.14453]
[1725802776686,1.91996268,54360.0,54359.0,0.14453]
[1725802776943,1.92396268,54360.0,54359.0,0.14453]
[1725802777191,1.92396268,54360.0,54359.0,0.08093]
[1725802777419,1.92696268,54360.0,54359.0,0.08093]
[1725802777650,1.92396268,54360.0,54359.0,0.08093]
[1725802778126,1.92696268,54360.0,54359.0,0.08093]
[1725802778343,1.92296268,54360.0,54359.0,0.08093]
[1725802778780,1.92696268,54360.0,54359.0,0.08093]
[1725802778993,1.78928163,54360.0,54359.0,0.08093]
[1725802779227,1.78528163,54360.0,54359.0,0.08093]
[1725802779456,1.78228163,54360.0,54359.0,0.08093]
[1725802779646,1.78628163,54360.0,54359.0,0.00163]
[1725802780077,2.15019863,54360.0,54359.0,0.00163]
[1725802780294,2.21639863,54360.0,54359.0,0.00163]
[1725802780761,2.21939863,54360.0,54359.0,0.00163]
[1725802780977,2.21639863,54360.0,54359.0,0.00163]
[1725802781418,2.21939863,54360.0,54359.0,0.00163]
[1725802781633,2.23339863,54360.0,54359.0,0.00163]
[1725802782531,2.22939863,54360.0,54359.0,0.00163]
[1725802783015,2.13786647,54360.0,54359.0,0.00163]
[1725802783529,2.10202711,54360.0,54359.0,0.00163]
[1725802783973,2.09902711,54360.0,54359.0,0.00163]
[1725802784186,2.10902711,54360.0,54359.0,0.00163]
[1725802784920,2.10902711,54360.0,54359.0,0.06583]
[1725802785166,2.32285201,54360.0,54359.0,0.06583]
[1725802785406,2.49606927,54360.0,54359.0,0.06583]
[1725802785621,2.48688427,54360.0,54359.0,0.06583]
[1725802786503,2.49488427,54360.0,54359.0,0.06583]
[1725802786946,2.48688427,54360.0,54359.0,0.06583]
[1725802787180,2.47888427,54360.0,54359.0,0.06583]
[1725802787412,2.3039012,54360.0,54359.0,0.06583]
[1725802788089,1.9129842,54360.0,54359.0,0.14143]
[1725802788320,1.74776694,54360.0,54359.0,0.14143]
[1725802788577,1.74968065,54360.0,54359.0,0.14143]
[1725802789033,1.74068065,54360.0,54359.0,0.14143]
[1725802789263,1.90606584,54360.0,54359.0,0.14143]
[1725802789554,2.12012298,54360.0,54359.0,0.14143]
[1725802790232,2.13218349,54360.0,54359.0,0.14143]
[1725802790452,2.14018349,54360.0,54359.0,0.14143]
[1725802792166,2.11134166,54360.0,54359.0,0.14143]
[1725802793830,2.08928115,54360.0,54359.0,0.14143]
[1725802794262,2.09082343,54360.0,54359.0,0.14143]
[1725802794471,2.27720563,54360.0,54359.0,0.14143]
[1725802795406,2.30604596,54360.0,54359.0,0.14143]
[1725802795661,2.11966376,54360.0,54359.0,0.14143]
[1725802795915,2.30464683,54360.0,54359.0,0.14143]
[1725802796357,2.2758065,54360.0,54359.0,0.14143]
[1725802797475,2.09082343,54360.0,54359.0,0.14143]
[1725802799355,2.09232038,54360.0,54359.0,0.14143]
[1725802800256,2.27884651,54360.0,54359.0,0.14143]
[1725802800476,2.09232038,54360.0,54359.0,0.14143]
[1725802801596,2.12116082,54360.0,54359.0,0.14143]
[1725802801838,2.30614389,54360.0,54359.0,0.14143]
[1725802803021,2.30666847,54360.0,54359.0,0.14143]
[1725802804625,2.67458547,54360.0,54359.0,0.00163]
[1725802807008,2.64574503,54360.0,54359.0,0.00163]
[1725802807237,1.708858,54359.0,54358.0,0.00066675]
[1725802807480,2.67802482,54359.0,54358.0,0.00066675]
[1725802809787,2.69202482,54359.0,54358.0,0.00066675]
[1725802810247,2.66366925,54359.0,54358.0,0.00066675]
[1725802810450,2.69166925,54359.0,54358.0,0.00066675]
[1725802810669,2.67766925,54359.0,54358.0,0.00066675]
[1725802811108,2.69166925,54359.0,54358.0,0.00066675]
[1725802811332,2.66366925,54359.0,54358.0,0.00066675]
[1725802812248,3.07679325,54359.0,54358.0,0.00066675]
[1725802812485,3.07679325,54359.0,54354.0,0.00163]
[1725802812486,0.563926,54355.0,54354.0,0.00163]
[1725802812673,2.00421175,54355.0,54354.0,0.00163]
[1725802812958,2.49773448,54355.0,54354.0,0.00163]
[1725802813172,3.36327912,54355.0,54354.0,0.00163]
[1725802813617,2.86568548,54355.0,54354.0,0.00163]
[1725802813870,3.05066855,54355.0,54354.0,0.00163]
[1725802814109,3.06466855,54355.0,54354.0,0.00163]
[1725802814333,1.288042,54346.0,54345.0,0.0763]
[1725802814561,2.04922575,54346.0,54345.0,0.0763]
[1725802814786,2.034214,54342.0,54333.0,0.0763]
[1725802815024,2.78359775,54342.0,54341.0,1e-06]
[1725802815272,0.194036,54337.0,54332.0,0.00162]
[1725802815508,1.42878059,54337.0,54332.0,0.00162]
[1725802815729,2.48103734,54337.0,54332.0,0.00162]
[1725802815973,2.84911034,54337.0,54332.0,0.00162]
[1725802816218,2.48103734,54337.0,54332.0,0.00162]
[1725802816457,2.50989144,54337.0,54332.0,0.00162]
[1725802816686,3.12895627,54337.0,54332.0,0.00162]
[1725802816919,2.94418046,54337.0,54332.0,0.00162]
[1725802817145,3.0630633,54337.0,54332.0,0.00162]
[1725802817369,1.288514,54326.0,54325.0,0.0763]
[1725802817590,1.6762111,54326.0,54325.0,0.0763]
[1725802818241,1.7761398,54326.0,54325.0,0.0763]
[1725802819338,1.7811398,54326.0,54325.0,0.0763]
[1725802819787,1.7881398,54326.0,54325.0,0.0763]
[1725802820011,1.94533594,54326.0,54325.0,0.0763]
[1725802820259,1.83595644,54326.0,54325.0,0.0763]
[1725802820493,1.97324689,54326.0,54325.0,0.0763]
[1725802820712,1.96324689,54326.0,54325.0,0.0763]
[1725802820939,1.96824689,54326.0,54325.0,0.0763]
[1725802821158,1.96324689,54326.0,54325.0,0.0763]
[1725802821382,1.96824689,54326.0,54325.0,0.0763]
[1725802821633,1.95173647,54326.0,54325.0,0.0763]
[1725802821865,1.94673647,54326.0,54325.0,0.0763]
[1725802822104,1.95773647,54326.0,54325.0,0.0763]
[1725802822337,1.95773647,54326.0,54325.0,0.077932]
[1725802822558,1.56025934,54326.0,54325.0,0.077932]
[1725802822787,1.91740634,54326.0,54325.0,0.077932]
[1725802823029,2.2944639,54326.0,54325.0,0.077932]
[1725802823240,2.3054639,54326.0,54325.0,0.077932]
[1725802823454,2.18468387,54326.0,54325.0,0.077932]
[1725802823887,2.19568387,54326.0,54325.0,0.077932]
[1725802824122,2.17368387,54326.0,54325.0,0.077932]
[1725802824349,2.2932639,54326.0,54325.0,0.001632]
[1725802824565,2.3148639,54326.0,54325.0,0.001632]
[1725802824802,1.93780634,54326.0,54325.0,0.001632]
[1725802825023,1.92680634,54326.0,54325.0,0.001632]
[1725802825245,1.92650634,54326.0,54325.0,0.001632]
[1725802825456,2.02031559,54326.0,54325.0,0.001632]
[1725802825890,1.99731559,54326.0,54325.0,0.001632]
[1725802826116,2.00911559,54326.0,54325.0,0.001632]
[1725802826327,2.00871559,54326.0,54325.0,0.001632]
[1725802826517,1.99671559,54326.0,54325.0,0.001632]
[1725802826771,2.00861559,54326.0,54325.0,0.001632]
[1725802827016,2.00851559,54326.0,54325.0,0.001632]
[1725802827235,1.288609,54322.0,54321.0,0.0789243]
[1725802827452,1.57359207,54322.0,54321.0,0.0789243]
[1725802828842,1.388609,54322.0,54321.0,0.1405243]
[1725802829252,1.396609,54322.0,54321.0,0.1405243]
[1725802829508,1.403609,54322.0,54321.0,0.1405243]
[1725802829737,1.396609,54322.0,54321.0,0.1405243]
[1725802830181,1.399609,54322.0,54321.0,0.1405243]
[1725802830868,1.391609,54322.0,54321.0,0.1405243]
[1725802831311,1.394609,54322.0,54321.0,0.1405243]
[1725802832229,1.391609,54322.0,54321.0,0.1405243]
[1725802832680,1.026435,54322.0,54321.0,0.1405243]
[1725802833140,1.023435,54322.0,54321.0,0.1405243]
[1725802833350,1.024435,54322.0,54321.0,0.1405243]
[1725802833576,0.839348,54322.0,54321.0,0.1405243]
[1725802834235,1.020435,54322.0,54321.0,0.1421563]
[1725802834699,1.022435,54322.0,54321.0,0.1421563]
[1725802834953,0.102,54322.0,54321.0,0.3262463]
[1725802835191,0.02967641,54327.0,54326.0,0.325673]
[1725802835433,0.02967641,54327.0,54326.0,0.69382]
[1725802835669,0.02967641,54327.0,54326.0,0.69282]
[1725802836183,0.02967641,54327.0,54326.0,0.323673]
[1725802836626,0.02967641,54327.0,54326.0,0.69182]
[1725802836864,0.001816,54327.0,54326.0,0.69182]
[1725802838255,0.001816,54327.0,54326.0,0.69082]
[1725802839195,0.002816,54327.0,54326.0,0.69082]
[1725802839876,0.002816,54327.0,54326.0,0.322673]
[1725802840314,0.03166986,54327.0,54326.0,0.69082]
[1725802840533,0.03166986,54327.0,54326.0,0.322673]
[1725802840793,0.002816,54327.0,54326.0,0.322673]
[1725802841701,0.002816,54327.0,54326.0,0.1416]
[1725802841913,0.102816,54327.0,54326.0,0.1416]
[1725802842396,0.102816,54327.0,54326.0,0.325673]
[1725802842600,0.100816,54327.0,54326.0,0.1416]
[1725802842811,0.101816,54327.0,54326.0,0.20922193]
[1725802843037,0.002816,54327.0,54326.0,0.1416]
[1725802843299,0.102816,54327.0,54326.0,0.1416]
[1725802844184,0.002816,54327.0,54326.0,0.1416]
[1725802844645,0.001816,54327.0,54326.0,0.1416]
[1725802845092,0.002816,54327.0,54326.0,0.1416]
[1725802845319,0.001816,54327.0,54326.0,0.1416]
[1725802846239,0.002816,54327.0,54326.0,0.1416]
[1725802846472,0.000816,54327.0,54326.0,0.1416]
[1725802846904,0.001816,54327.0,54326.0,0.1416]
[1725802847820,0.002816,54327.0,54326.0,0.1416]
[1725802850940,0.286886,54327.0,54326.0,0.1416]
[1725802851150,0.102816,54327.0,54326.0,0.1416]
[1725802851640,0.36348773,54327.0,54326.0,0.1416]
[1725802851851,0.655027,54327.0,54326.0,0.1416]
[1725802852534,0.653027,54327.0,54326.0,0.1416]
[1725802852752,1.021168,54327.0,54326.0,0.1416]
[1725802854517,1.07604133,54327.0,54326.0,0.1416]
[1725802855624,1.20412343,54327.0,54326.0,0.1416]
[1725802855847,1.28652845,54327.0,54326.0,0.1416]
[1725802856510,1.20412343,54327.0,54326.0,0.1416]
[1725802856614,1.021168,54327.0,54326.0,0.1416]
[1725802857261,1.021168,54327.0,54326.0,0.143232]
[1725802857479,1.28927418,54327.0,54326.0,0.143232]
[1725802858532,1.42661588,54327.0,54326.0,0.143232]
[1725802858748,1.28927418,54327.0,54326.0,0.143232]
[1725802858980,2.02555618,54327.0,54326.0,0.001632]
[1725802859220,2.02555618,54327.0,54321.0,0.001632]
[1725802859221,0.552261,54322.0,54321.0,0.001632]
[1725802859448,1.288609,54322.0,54321.0,0.001632]
[1725802859666,2.18769358,54322.0,54321.0,0.001632]
[1725802860357,2.00271051,54322.0,54321.0,0.001632]
[1725802861218,1.82189661,54322.0,54321.0,0.001632]
[1725802861419,2.00431842,54322.0,54321.0,0.001632]
[1725802862263,2.00731842,54322.0,54321.0,0.001632]
[1725802862946,1.65771518,54322.0,54321.0,0.001632]
[1725802863210,1.82488999,54322.0,54321.0,0.001632]
[1725802863432,2.00629152,54322.0,54321.0,0.001632]
[1725802863664,2.00574691,54322.0,54321.0,0.001632]
[1725802863873,2.03021367,54322.0,54321.0,0.001632]
[1725802864285,2.19538897,54322.0,54321.0,0.001632]
[1725802864505,1.84935724,54322.0,54321.0,0.001632]
[1725802864717,1.84267495,54322.0,54321.0,0.001632]
[1725802866278,1.67750162,54322.0,54321.0,0.001632]
[1725802866505,1.86176912,54322.0,54321.0,0.001632]
[1725802867179,1.86376912,54322.0,54321.0,0.001632]
[1725802867860,2.02894245,54322.0,54321.0,0.001632]
[1725802868083,1.86376912,54322.0,54321.0,0.001632]
[1725802868313,2.02894245,54322.0,54321.0,0.001632]
[1725802868543,2.02994245,54322.0,54321.0,0.001632]
[1725802868971,2.02694245,54322.0,54321.0,0.001632]
[1725802869183,2.21024873,54322.0,54321.0,0.001632]
[1725802869421,2.21324873,54322.0,54321.0,0.001632]
[1725802869638,2.02898123,54322.0,54321.0,0.001632]
[1725802869879,2.19415263,54322.0,54321.0,0.001632]
[1725802870944,2.22301208,54322.0,54321.0,0.001632]
[1725802871372,2.05784068,54322.0,54321.0,0.142932]
[1725802871599,1.71136107,54322.0,54321.0,0.142932]
[1725802872439,1.70836107,54322.0,54321.0,0.142932]
[1725802872655,0.29228531,54322.0,54321.0,0.34033969]
[1725802872889,0.47637231,54322.0,54321.0,0.34033969]
[1725802873129,0.55764488,54322.0,54321.0,0.34033969]
[1725802873327,0.55764488,54322.0,54321.0,0.30939972]
[1725802873536,0.55664488,54322.0,54321.0,0.30939972]
[1725802874378,0.37255788,54322.0,54321.0,0.30939972]
[1725802874587,0.37255788,54322.0,54321.0,0.49348972]
[1725802874815,0.37628069,54322.0,54321.0,0.49348972]
[1725802875053,0.37628069,54322.0,54321.0,0.30939972]
[1725802875292,0.37728069,54322.0,54321.0,0.30939972]
[1725802875917,0.37728069,54322.0,54321.0,0.49348972]
[1725802876349,0.37828069,54322.0,54321.0,0.49348972]
[1725802876771,0.08362579,54322.0,54321.0,0.49348972]
[1725802877017,0.08462579,54322.0,54321.0,0.49348972]
[1725802877480,0.08362579,54322.0,54321.0,0.49348972]
[1725802877699,0.08262579,54322.0,54321.0,0.49348972]
[1725802877909,0.08362579,54322.0,54321.0,0.49348972]
[1725802878152,0.0550899,54322.0,54321.0,0.30939972]
[1725802878389,0.001,54322.0,54321.0,0.16809972]
[1725802878610,0.001,54322.0,54321.0,0.30939972]
[1725802878877,0.00087787,54322.0,54321.0,0.49348972]
[1725802879672,0.001,54322.0,54321.0,0.49348972]
[1725802880603,0.05509944,54324.0,54321.0,0.35218972]
[1725802880848,0.05509944,54324.0,54323.0,0.1413]
[1725802881063,0.05509944,54324.0,54323.0,0.22546677]
[1725802881732,0.05609944,54324.0,54323.0,0.22546677]
[1725802881956,0.05509944,54324.0,54323.0,0.22546677]
[1725802882484,0.05609944,54324.0,54323.0,0.22546677]
[1725802883112,0.24117944,54324.0,54323.0,0.22546677]
[1725802883325,0.002,54324.0,54323.0,0.1393]
[1725802883555,0.18508,54324.0,54323.0,0.1393]
[1725802883974,0.18608,54324.0,54323.0,0.1393]
[1725802884431,0.18408,54324.0,54323.0,0.1393]
[1725802884661,0.18508,54324.0,54323.0,0.1403]
[1725802884914,0.18608,54324.0,54323.0,0.1403]
[1725802886249,0.554241,54324.0,54323.0,0.1403]
[1725802887596,0.18608,54324.0,54323.0,0.18177839]
[1725802889060,0.18608,54324.0,54323.0,0.1403]
[1725802889273,0.554241,54324.0,54323.0,0.1403]
[1725802889699,0.8950178,54324.0,54323.0,0.1403]
[1725802890809,0.92270173,54324.0,54323.0,0.1403]
[1725802891239,0.78481892,54324.0,54323.0,0.1403]
[1725802893461,0.78381892,54324.0,54323.0,0.1403]
[1725802893853,0.78381892,54324.0,54323.0,0.1393]
[1725802894339,0.7847062,54324.0,54323.0,0.1403]
[1725802894566,0.4165452,54324.0,54323.0,0.1403]
[1725802894777,0.7847062,54324.0,54323.0,0.18177849]
[1725802894984,0.92258414,54324.0,54323.0,0.18177849]
[1725802895409,0.92258414,54324.0,54323.0,0.18077849]
[1725802895650,0.7837062,54324.0,54323.0,0.18077849]
[1725802895888,0.7847062,54324.0,54323.0,0.18177849]
[1725802896137,0.369161,54324.0,54323.0,0.1403]
[1725802896359,0.553241,54324.0,54323.0,0.1403]
[1725802897017,0.63695388,54324.0,54323.0,0.1393]
[1725802897239,0.63595388,54324.0,54323.0,0.1393]
[1725802897458,0.63595388,54324.0,54323.0,0.1403]
[1725802897676,0.63595388,54324.0,54323.0,0.1393]
[1725802897893,0.63695388,54324.0,54323.0,0.1393]
[1725802898110,0.63795388,54324.0,54323.0,0.1403]
[1725802899589,0.26979288,54324.0,54323.0,0.18177849]
[1725802899831,0.18708,54324.0,54323.0,0.18177849]
[1725802900795,0.003,54324.0,54323.0,0.18177849]
[1725802901017,0.18708,54324.0,54323.0,0.18177849]
[1725802903304,0.18708,54324.0,54323.0,0.27053443]
[1725802904213,0.18708,54324.0,54323.0,0.27216443]
[1725802904428,0.187895,54324.0,54323.0,0.27216443]
[1725802907378,0.32577484,54324.0,54323.0,0.27216443]
[1725802907631,0.32577484,54324.0,54323.0,0.23068594]
[1725802908073,0.14169484,54324.0,54323.0,0.23068594]
[1725802908296,0.32577484,54324.0,54323.0,0.23068594]
[1725802908756,0.187895,54324.0,54323.0,0.23068594]
[1725802909204,0.32575995,54324.0,54323.0,0.23068594]
[1725802909680,0.187895,54324.0,54323.0,0.23068594]
[1725802910397,0.924217,54324.0,54323.0,0.23068594]
[1725802910648,0.924217,54324.0,54323.0,0.14193]
[1725802911052,1.13994837,54324.0,54323.0,0.14193]
[1725802911981,0.40362637,54324.0,54323.0,0.14193]
[1725802912215,0.77178737,54324.0,54323.0,0.14193]
[1725802913969,0.77091171,54324.0,54323.0,0.14193]
[1725802915810,1.13907271,54324.0,54323.0,0.14193]
[1725802916041,1.28259423,54324.0,54323.0,0.07933]
[1725802916252,1.13907271,54324.0,54323.0,0.07933]
[1725802916886,1.13907271,54324.0,54323.0,0.00263]
[1725802917150,1.13807271,54324.0,54323.0,0.00263]
[1725802917363,1.16566897,54324.0,54323.0,0.00263]
[1725802917590,1.16666897,54324.0,54323.0,0.00263]
[1725802917807,1.16466897,54324.0,54323.0,0.00163]
[1725802918247,1.92936748,54324.0,54323.0,0.00263]
[1725802918453,1.97456748,54324.0,54323.0,0.00263]
[1725802918680,1.96689901,54324.0,54323.0,0.00263]
[1725802918936,2.15222653,54324.0,54323.0,0.00163]
[1725802919414,2.15222653,54324.0,54323.0,0.00263]
[1725802919662,2.15222653,54324.0,54323.0,0.00163]
[1725802919663,2.3372096,54324.0,54323.0,0.00163]
[1725802919883,2.14988208,54324.0,54323.0,0.00163]
[1725802920335,1.55153801,54324.0,54323.0,0.14253]
[1725802920807,1.5803973,54324.0,54323.0,0.14253]
[1725802921034,1.5853973,54324.0,54323.0,0.14253]
[1725802921271,1.5833973,54324.0,54323.0,0.14253]
[1725802921714,1.5853973,54324.0,54323.0,0.14253]
[1725802921928,1.5803973,54324.0,54323.0,0.14253]
[1725802922134,1.5803973,54324.0,54323.0,0.14353]
[1725802922806,1.58187053,54324.0,54323.0,0.14353]
[1725802923072,1.45438825,54324.0,54323.0,0.14353]
[1725802923549,0.89608413,54324.0,54323.0,0.14353]
[1725802924023,0.89608413,54324.0,54323.0,0.23228594]
[1725802924024,0.89308413,54324.0,54323.0,0.23228594]
[1725802924264,0.52492313,54324.0,54323.0,0.23228594]
[1725802924491,0.6628861,54324.0,54323.0,0.23228594]
[1725802924727,0.4788061,54324.0,54323.0,0.23228594]
[1725802924941,0.37880747,54324.0,54323.0,0.23228594]
[1725802925161,0.56288747,54324.0,54323.0,0.23228594]
[1725802925378,0.37880747,54324.0,54323.0,0.23228594]
[1725802926924,0.34994818,54324.0,54323.0,0.14353]
[1725802931050,0.34994818,54324.0,54323.0,0.327614]
[1725802931483,0.08276379,54324.0,54323.0,0.329714]
[1725802931930,0.18276379,54325.0,54323.0,0.30236179]
[1725802932117,0.18276379,54325.0,54324.0,0.32708]
[1725802932322,0.18275047,54325.0,54324.0,0.143]
[1725802933785,0.02967089,54326.0,54325.0,0.695231]
[1725802934020,0.000815,54326.0,54325.0,1.15604281]
[1725802934250,0.000815,54326.0,54325.0,1.52419681]
[1725802935194,0.001815,54326.0,54325.0,1.52519681]
[1725802936027,0.000815,54326.0,54325.0,1.52419681]
[1725802936266,0.000815,54326.0,54325.0,1.52519681]
[1725802936469,0.001815,54326.0,54325.0,1.52519681]
[1725802936704,0.001815,54326.0,54325.0,1.90335081]
[1725802936994,0.05517104,54340.0,54339.0,0.920147]
[1725802936995,0.05513002,54340.0,54339.0,0.920147]
[1725802937199,0.05513002,54343.0,54342.0,0.552058]
[1725802937410,0.05513002,54345.0,54344.0,0.327012]
[1725802937625,0.08269503,54347.0,54344.0,0.327012]
[1725802937626,0.05513002,54348.0,54346.0,0.0772]
[1725802937863,0.05513002,54348.0,54346.0,0.08087973]
[1725802938097,0.05513002,54348.0,54346.0,0.0772]
[1725802938313,0.05513002,54349.0,54346.0,0.0772]
[1725802938564,0.183996,54349.0,54346.0,0.0772]
[1725802939252,0.103,54348.0,54346.0,0.0772]
[1725802939481,0.288999,54348.0,54346.0,0.0772]
[1725802939720,0.288999,54348.0,54346.0,0.1283032]
[1725802940414,0.31784339,54348.0,54346.0,0.1283032]
[1725802940631,0.31484339,54348.0,54346.0,0.1283032]
[1725802941294,0.31484339,54348.0,54346.0,0.0802]
[1725802941521,0.31484339,54348.0,54346.0,0.0772]
[1725802941522,0.31284339,54348.0,54346.0,0.0772]
[1725802941931,0.31384339,54348.0,54346.0,0.0822]
[1725802942158,0.31384339,54348.0,54346.0,0.0842]
[1725802943122,0.31384339,54348.0,54346.0,0.1544048]